[Event "Late-Titled-Tuesday-Blitz-June-18-2024"]
[Site "Chess.com"]
[Date "2024.06.18"]
[Round "9"]
[White "nitpicker"]
[Black "tgpgoat"]
[Result "0-1"]
[WhiteElo "2349"]
[BlackElo "2514"]
[TimeControl "180+1"]
[EndTime "15:43:32 PDT"]
[Termination "tgpgoat won by checkmate"]

1. d4 {[%clk 0:03:00.9]} 1... Nf6 {[%clk 0:02:59.9]} 2. c4 {[%clk 0:03:00.4]}
2... c5 {[%clk 0:03:00.3]} 3. d5 {[%clk 0:03:00.1]} 3... b5 {[%clk 0:03:00.8]}
4. cxb5 {[%clk 0:03:00.4]} 4... a6 {[%clk 0:03:00.8]} 5. e3 {[%clk 0:03:00.7]}
5... axb5 {[%clk 0:03:01]} 6. Bxb5 {[%clk 0:03:00.7]} 6... Qa5+ {[%clk
0:02:53.8]} 7. Nc3 {[%clk 0:03:00.2]} 7... Ne4 {[%clk 0:02:52.9]} 8. Ne2 {[%clk
0:02:58.6]} 8... Nxc3 {[%clk 0:02:48.9]} 9. Nxc3 {[%clk 0:02:58.5]} 9... g6
{[%clk 0:02:48]} 10. a4 {[%clk 0:02:54.3]} 10... Bg7 {[%clk 0:02:47]} 11. Bd2
{[%clk 0:02:53.7]} 11... Qc7 {[%clk 0:02:42.5]} 12. O-O {[%clk 0:02:46.9]} 12...
O-O {[%clk 0:02:41.7]} 13. e4 {[%clk 0:02:40.1]} 13... d6 {[%clk 0:02:38.3]} 14.
Be3 {[%clk 0:02:10.5]} 14... Ba6 {[%clk 0:02:33.6]} 15. Qd2 {[%clk 0:02:08.8]}
15... Bxb5 {[%clk 0:02:26.5]} 16. axb5 {[%clk 0:02:03.9]} 16... Nd7 {[%clk
0:02:26.4]} 17. Bh6 {[%clk 0:01:48.9]} 17... Ne5 {[%clk 0:02:24.1]} 18. Bxg7
{[%clk 0:01:46.4]} 18... Kxg7 {[%clk 0:02:25]} 19. f4 {[%clk 0:01:42.3]} 19...
Nd7 {[%clk 0:02:24.1]} 20. Ra6 {[%clk 0:01:32.1]} 20... Rxa6 {[%clk 0:02:21.7]}
21. bxa6 {[%clk 0:01:31.5]} 21... Qb6 {[%clk 0:02:22.3]} 22. Ra1 {[%clk
0:01:25.5]} 22... Ra8 {[%clk 0:02:22.5]} 23. Qe2 {[%clk 0:01:06.5]} 23... c4+
{[%clk 0:02:21.6]} 24. Kf1 {[%clk 0:01:00]} 24... Rxa6 {[%clk 0:02:20.3]} 25.
Rxa6 {[%clk 0:00:59.9]} 25... Qxa6 {[%clk 0:02:19.8]} 26. e5 {[%clk 0:01:00.6]}
26... Nc5 {[%clk 0:02:16.4]} 27. exd6 {[%clk 0:00:51.1]} 27... exd6 {[%clk
0:02:17.3]} 28. f5 {[%clk 0:00:26.5]} 28... Nd3 {[%clk 0:02:11.8]} 29. f6+
{[%clk 0:00:17.3]} 29... Kxf6 {[%clk 0:02:10.6]} 30. Ne4+ {[%clk 0:00:12.6]}
30... Kg7 {[%clk 0:02:10.8]} 31. Qf3 {[%clk 0:00:07.7]} 31... Qa1+ {[%clk
0:02:09.5]} 32. Ke2 {[%clk 0:00:07.7]} 32... Qe1# {[%clk 0:02:06.7]} 0-1

[Event "Late-Titled-Tuesday-Blitz-June-18-2024"]
[Site "Chess.com"]
[Date "2024.06.18"]
[Round "9"]
[White "JAN2404"]
[Black "ploxoi"]
[Result "0-1"]
[WhiteElo "2093"]
[BlackElo "2493"]
[TimeControl "180+1"]
[EndTime "15:44:13 PDT"]
[Termination "ploxoi won by checkmate"]

1. e4 {[%clk 0:03:00.9]} 1... c6 {[%clk 0:03:00.1]} 2. d4 {[%clk 0:03:01]} 2...
d5 {[%clk 0:03:00.4]} 3. e5 {[%clk 0:03:01.6]} 3... c5 {[%clk 0:03:00.5]} 4. c3
{[%clk 0:03:00.6]} 4... Nc6 {[%clk 0:03:00.2]} 5. Nf3 {[%clk 0:02:59.6]} 5...
Bg4 {[%clk 0:02:58.1]} 6. Be2 {[%clk 0:02:56.7]} 6... e6 {[%clk 0:02:57.8]} 7.
Be3 {[%clk 0:02:55.3]} 7... Nge7 {[%clk 0:02:57.6]} 8. O-O {[%clk 0:02:50.3]}
8... Nf5 {[%clk 0:02:57]} 9. dxc5 {[%clk 0:02:42.5]} 9... Nxe3 {[%clk
0:02:54.2]} 10. fxe3 {[%clk 0:02:40.7]} 10... Bxc5 {[%clk 0:02:54.7]} 11. Nd4
{[%clk 0:02:39.4]} 11... Bxe2 {[%clk 0:02:53.5]} 12. Qxe2 {[%clk 0:02:38.2]}
12... Nxe5 {[%clk 0:02:46.4]} 13. Qb5+ {[%clk 0:02:20.3]} 13... Nd7 {[%clk
0:02:46.5]} 14. Qxb7 {[%clk 0:02:19.7]} 14... Rb8 {[%clk 0:02:42.4]} 15. Qa6
{[%clk 0:02:10.4]} 15... Rxb2 {[%clk 0:02:34.4]} 16. Na3 {[%clk 0:01:36.2]}
16... O-O {[%clk 0:02:08.1]} 17. Nac2 {[%clk 0:01:21.9]} 17... e5 {[%clk
0:01:57.1]} 18. Nc6 {[%clk 0:00:48.7]} 18... Qg5 {[%clk 0:01:55.5]} 19. Rf2
{[%clk 0:00:43.7]} 19... Bxe3 {[%clk 0:01:49.6]} 20. Nxe3 {[%clk 0:00:42.9]}
20... Qxe3 {[%clk 0:01:48.9]} 21. Rf1 {[%clk 0:00:40.7]} 21... Rxf2 {[%clk
0:01:28.7]} 22. Rxf2 {[%clk 0:00:40]} 22... Qxc3 {[%clk 0:01:29.3]} 23. Ne7+
{[%clk 0:00:35.4]} 23... Kh8 {[%clk 0:01:28.9]} 24. Qxa7 {[%clk 0:00:34.1]}
24... Nc5 {[%clk 0:01:22.9]} 25. Nxd5 {[%clk 0:00:33.1]} 25... Qd4 {[%clk
0:01:13.3]} 26. Qe7 {[%clk 0:00:20.1]} 26... Rb8 {[%clk 0:01:06.7]} 27. Qxf7
{[%clk 0:00:18.4]} 27... Rb1# {[%clk 0:01:05.8]} 0-1

[Event "Late-Titled-Tuesday-Blitz-June-18-2024"]
[Site "Chess.com"]
[Date "2024.06.18"]
[Round "9"]
[White "Meri-Arabidze"]
[Black "FairChess_on_YouTube"]
[Result "0-1"]
[WhiteElo "2688"]
[BlackElo "3083"]
[TimeControl "180+1"]
[EndTime "15:44:14 PDT"]
[Termination "FairChess_on_YouTube won on time"]

1. d4 {[%clk 0:03:00.9]} 1... f5 {[%clk 0:02:58.3]} 2. Bg5 {[%clk 0:02:56.5]}
2... c6 {[%clk 0:02:56.2]} 3. Nc3 {[%clk 0:02:53.4]} 3... d5 {[%clk 0:02:55.7]}
4. e3 {[%clk 0:02:49.1]} 4... Qb6 {[%clk 0:02:49.7]} 5. Qc1 {[%clk 0:02:35.1]}
5... Nd7 {[%clk 0:02:48.7]} 6. Nf3 {[%clk 0:02:33.3]} 6... g6 {[%clk 0:02:48.9]}
7. h4 {[%clk 0:02:30.1]} 7... Ngf6 {[%clk 0:02:48.8]} 8. Be2 {[%clk 0:02:20.8]}
8... Bg7 {[%clk 0:02:46.2]} 9. Nd2 {[%clk 0:02:03.3]} 9... e5 {[%clk 0:02:41.8]}
10. dxe5 {[%clk 0:01:57.2]} 10... Nxe5 {[%clk 0:02:42.7]} 11. h5 {[%clk
0:01:55.2]} 11... gxh5 {[%clk 0:02:37.7]} 12. Nf3 {[%clk 0:01:30.7]} 12... Nxf3+
{[%clk 0:02:28.5]} 13. Bxf3 {[%clk 0:01:29.9]} 13... Be6 {[%clk 0:02:27.6]} 14.
a4 {[%clk 0:01:11.1]} 14... Qb4 {[%clk 0:02:05.5]} 15. Rh4 {[%clk 0:01:07.7]}
15... Ne4 {[%clk 0:02:04.2]} 16. Bxh5+ {[%clk 0:00:41.7]} 16... Kd7 {[%clk
0:02:04.4]} 17. Kf1 {[%clk 0:00:37.3]} 17... Raf8 {[%clk 0:02:04.1]} 18. Kg1
{[%clk 0:00:30.5]} 18... Rhg8 {[%clk 0:02:03.6]} 19. Nxe4 {[%clk 0:00:22]} 19...
fxe4 {[%clk 0:02:00.3]} 20. c3 {[%clk 0:00:21.5]} 20... Qd6 {[%clk 0:01:58.5]}
21. Bf4 {[%clk 0:00:21]} 21... Be5 {[%clk 0:01:58]} 22. Bxe5 {[%clk 0:00:10]}
22... Qxe5 {[%clk 0:01:58.9]} 23. Be2 {[%clk 0:00:10]} 23... Rxg2+ {[%clk
0:01:57.3]} 24. Kxg2 {[%clk 0:00:07.6]} 24... Qg5+ {[%clk 0:01:57.2]} 25. Bg4
{[%clk 0:00:04.4]} 25... Qxh4 {[%clk 0:01:52.6]} 26. Bxe6+ {[%clk 0:00:04.4]}
26... Kxe6 {[%clk 0:01:53.5]} 27. Qe1 {[%clk 0:00:02.1]} 27... Qh5 {[%clk
0:01:35.8]} 28. Kf1 {[%clk 0:00:02.1]} 28... Qf3 {[%clk 0:01:34.7]} 29. a5
{[%clk 0:00:01.7]} 29... Rf6 {[%clk 0:01:34.6]} 30. a6 {[%clk 0:00:01.2]} 30...
Rh6 {[%clk 0:01:34.5]} 0-1

[Event "Late-Titled-Tuesday-Blitz-June-18-2024"]
[Site "Chess.com"]
[Date "2024.06.18"]
[Round "9"]
[White "Rainbow2014"]
[Black "gabduschew"]
[Result "1-0"]
[WhiteElo "2507"]
[BlackElo "2372"]
[TimeControl "180+1"]
[EndTime "15:44:20 PDT"]
[Termination "Rainbow2014 won by resignation"]

1. e4 {[%clk 0:02:59.3]} 1... c5 {[%clk 0:02:59]} 2. Nf3 {[%clk 0:02:58.5]} 2...
d6 {[%clk 0:02:58.7]} 3. d4 {[%clk 0:02:56.4]} 3... cxd4 {[%clk 0:02:56.9]} 4.
Nxd4 {[%clk 0:02:57.3]} 4... Nf6 {[%clk 0:02:56.6]} 5. Nc3 {[%clk 0:02:57.7]}
5... a6 {[%clk 0:02:56.6]} 6. Bg5 {[%clk 0:02:58]} 6... Nbd7 {[%clk 0:02:55.8]}
7. Qe2 {[%clk 0:02:49.4]} 7... Qa5 {[%clk 0:02:46.2]} 8. f4 {[%clk 0:02:42.8]}
8... h6 {[%clk 0:02:45]} 9. Bxf6 {[%clk 0:02:38.6]} 9... Nxf6 {[%clk 0:02:43.9]}
10. O-O-O {[%clk 0:02:36.8]} 10... e5 {[%clk 0:02:40.6]} 11. Nf5 {[%clk
0:02:35.9]} 11... Qc7 {[%clk 0:02:26.4]} 12. g3 {[%clk 0:01:58.4]} 12... g6
{[%clk 0:02:24.7]} 13. Ne3 {[%clk 0:01:57.3]} 13... Be6 {[%clk 0:02:23.9]} 14.
f5 {[%clk 0:01:56.9]} 14... gxf5 {[%clk 0:02:22.6]} 15. exf5 {[%clk 0:01:57.8]}
15... Bd7 {[%clk 0:02:19.8]} 16. Ned5 {[%clk 0:01:57.8]} 16... Nxd5 {[%clk
0:02:16.5]} 17. Nxd5 {[%clk 0:01:58.7]} 17... Qa5 {[%clk 0:02:16.6]} 18. Nf6+
{[%clk 0:01:47.3]} 18... Ke7 {[%clk 0:02:14.5]} 19. Nxd7 {[%clk 0:01:46.7]}
19... Kxd7 {[%clk 0:02:15.4]} 20. Qc4 {[%clk 0:01:43.9]} 20... Ke8 {[%clk
0:01:51]} 21. Bg2 {[%clk 0:01:42.7]} 21... Qb6 {[%clk 0:01:41.8]} 22. Bd5 {[%clk
0:01:37.1]} 22... Rh7 {[%clk 0:01:36.3]} 23. f6 {[%clk 0:01:33.8]} 23... h5
{[%clk 0:01:34.3]} 24. Rhf1 {[%clk 0:01:14.8]} 24... Bh6+ {[%clk 0:01:23.1]} 25.
Kb1 {[%clk 0:01:14.7]} 25... Be3 {[%clk 0:01:23.7]} 26. Rf5 {[%clk 0:01:08]}
26... Bd4 {[%clk 0:01:19.6]} 27. c3 {[%clk 0:01:00.3]} 27... Bc5 {[%clk
0:01:14.9]} 28. Rxh5 {[%clk 0:00:58.2]} 28... Rxh5 {[%clk 0:01:04.9]} 29. Bxf7+
{[%clk 0:00:58]} 29... Kd7 {[%clk 0:01:02.6]} 30. Bxh5 {[%clk 0:00:58.9]} 30...
Kc7 {[%clk 0:00:57.5]} 31. f7 {[%clk 0:00:46]} 31... Rf8 {[%clk 0:00:55.4]} 32.
Qe6 {[%clk 0:00:42.7]} 32... Qc6 {[%clk 0:00:54.7]} 33. Qe7+ {[%clk 0:00:41.6]}
1-0

[Event "Late-Titled-Tuesday-Blitz-June-18-2024"]
[Site "Chess.com"]
[Date "2024.06.18"]
[Round "9"]
[White "Gyulamiryan-koryun"]
[Black "OIAM03"]
[Result "1-0"]
[WhiteElo "1676"]
[BlackElo "2014"]
[TimeControl "180+1"]
[EndTime "15:44:27 PDT"]
[Termination "Gyulamiryan-koryun won on time"]

1. e4 {[%clk 0:03:00.9]} 1... c5 {[%clk 0:02:59.4]} 2. Nf3 {[%clk 0:02:59.8]}
2... d6 {[%clk 0:02:58.5]} 3. d4 {[%clk 0:03:00.1]} 3... cxd4 {[%clk 0:02:57.2]}
4. Nxd4 {[%clk 0:03:00.6]} 4... Nf6 {[%clk 0:02:54.7]} 5. Nc3 {[%clk 0:03:00]}
5... a6 {[%clk 0:02:53.7]} 6. Be3 {[%clk 0:02:57.5]} 6... e5 {[%clk 0:02:48.9]}
7. Nb3 {[%clk 0:02:55.9]} 7... Be6 {[%clk 0:02:47.3]} 8. Qd2 {[%clk 0:02:54.6]}
8... Be7 {[%clk 0:02:45.7]} 9. O-O-O {[%clk 0:02:54.5]} 9... b5 {[%clk
0:02:44.1]} 10. f3 {[%clk 0:02:49.5]} 10... O-O {[%clk 0:02:40.8]} 11. g4 {[%clk
0:02:48.6]} 11... Nfd7 {[%clk 0:02:35]} 12. Nd5 {[%clk 0:02:44.2]} 12... Nc6
{[%clk 0:01:24.4]} 13. Nxe7+ {[%clk 0:02:39.7]} 13... Qxe7 {[%clk 0:01:22.4]}
14. Qxd6 {[%clk 0:02:39.5]} 14... Qxd6 {[%clk 0:01:20.9]} 15. Rxd6 {[%clk
0:02:38.7]} 15... Rfc8 {[%clk 0:01:15.7]} 16. h4 {[%clk 0:02:21.3]} 16... Nb4
{[%clk 0:01:09.4]} 17. Kb1 {[%clk 0:02:18.1]} 17... Nxc2 {[%clk 0:01:04.4]} 18.
Bf2 {[%clk 0:02:13.6]} 18... Nb4 {[%clk 0:01:01.3]} 19. Bd3 {[%clk 0:02:08.1]}
19... Nxd3 {[%clk 0:00:52.9]} 20. Rxd3 {[%clk 0:02:07.1]} 20... a5 {[%clk
0:00:47.6]} 21. Rhd1 {[%clk 0:02:02.7]} 21... a4 {[%clk 0:00:44.9]} 22. Na1
{[%clk 0:01:46.4]} 22... Nf6 {[%clk 0:00:11.5]} 23. Rd6 {[%clk 0:01:36.8]} 23...
g6 {[%clk 0:00:05.2]} 24. Bb6 {[%clk 0:01:30.2]} 24... b4 {[%clk 0:00:03.9]} 25.
Rd8+ {[%clk 0:01:26.6]} 25... Rxd8 {[%clk 0:00:03.3]} 26. Rxd8+ {[%clk 0:01:26]}
26... Rxd8 {[%clk 0:00:03.1]} 27. Bxd8 {[%clk 0:01:26]} 27... Nd7 {[%clk
0:00:02.9]} 28. Be7 {[%clk 0:01:25.8]} 28... Kg7 {[%clk 0:00:01.4]} 29. Bxb4
{[%clk 0:01:23.4]} 1-0

[Event "Late-Titled-Tuesday-Blitz-June-18-2024"]
[Site "Chess.com"]
[Date "2024.06.18"]
[Round "9"]
[White "IMRosen"]
[Black "GHANDEEVAM2003"]
[Result "0-1"]
[WhiteElo "2758"]
[BlackElo "2990"]
[TimeControl "180+1"]
[EndTime "15:44:37 PDT"]
[Termination "GHANDEEVAM2003 won by checkmate"]

1. e4 {[%clk 0:03:00.9]} 1... c6 {[%clk 0:02:59.2]} 2. d4 {[%clk 0:02:58.6]}
2... d5 {[%clk 0:02:59.7]} 3. exd5 {[%clk 0:02:59.2]} 3... cxd5 {[%clk
0:03:00.6]} 4. Bd3 {[%clk 0:02:59.8]} 4... Nc6 {[%clk 0:03:00]} 5. c3 {[%clk
0:02:59.7]} 5... g6 {[%clk 0:03:00.4]} 6. Nd2 {[%clk 0:02:56.9]} 6... Bf5 {[%clk
0:02:59.1]} 7. Bxf5 {[%clk 0:02:56.8]} 7... gxf5 {[%clk 0:03:00]} 8. Ne2 {[%clk
0:02:55.2]} 8... Nf6 {[%clk 0:02:59.7]} 9. Nf3 {[%clk 0:02:55.6]} 9... Rg8
{[%clk 0:02:58.7]} 10. O-O {[%clk 0:02:50.8]} 10... Ne4 {[%clk 0:02:58.9]} 11.
Bf4 {[%clk 0:02:47.9]} 11... e6 {[%clk 0:02:55.9]} 12. Nc1 {[%clk 0:02:45]}
12... Bd6 {[%clk 0:02:53.5]} 13. Bxd6 {[%clk 0:02:29.9]} 13... Qxd6 {[%clk
0:02:54.4]} 14. Nd3 {[%clk 0:02:30.6]} 14... f6 {[%clk 0:02:50.1]} 15. Qc1
{[%clk 0:02:30.3]} 15... O-O-O {[%clk 0:02:46.7]} 16. Qf4 {[%clk 0:02:28.6]}
16... Qe7 {[%clk 0:02:46.5]} 17. a4 {[%clk 0:02:15.9]} 17... Rg4 {[%clk
0:02:45]} 18. Qh6 {[%clk 0:02:09.9]} 18... Rdg8 {[%clk 0:02:43.6]} 19. g3 {[%clk
0:02:09.7]} 19... R8g6 {[%clk 0:02:34.2]} 20. Qe3 {[%clk 0:02:02.2]} 20... e5
{[%clk 0:02:27.3]} 21. dxe5 {[%clk 0:01:40.2]} 21... fxe5 {[%clk 0:02:28.2]} 22.
Nb4 {[%clk 0:01:32]} 22... f4 {[%clk 0:02:19.1]} 23. Nxc6 {[%clk 0:01:31.6]}
23... bxc6 {[%clk 0:02:20]} 24. Qe2 {[%clk 0:01:19.9]} 24... fxg3 {[%clk
0:02:05]} 25. fxg3 {[%clk 0:01:15.4]} 25... Qg7 {[%clk 0:01:39]} 26. Qa6+ {[%clk
0:01:05.7]} 26... Kb8 {[%clk 0:01:38.6]} 27. Kh1 {[%clk 0:00:32.2]} 27... Rxg3
{[%clk 0:01:26.3]} 28. hxg3 {[%clk 0:00:21.3]} 28... Nxg3+ {[%clk 0:01:27.2]}
29. Kg2 {[%clk 0:00:22]} 29... Ne4+ {[%clk 0:01:27.2]} 30. Kh1 {[%clk
0:00:19.6]} 30... Qh6+ {[%clk 0:01:16.2]} 31. Nh2 {[%clk 0:00:19.1]} 31... Ng3+
{[%clk 0:01:17.1]} 32. Kg2 {[%clk 0:00:19.9]} 32... Nxf1+ {[%clk 0:01:12.5]} 33.
Kh1 {[%clk 0:00:07.7]} 33... Qxh2# {[%clk 0:01:11.6]} 0-1

[Event "Late-Titled-Tuesday-Blitz-June-18-2024"]
[Site "Chess.com"]
[Date "2024.06.18"]
[Round "9"]
[White "nindjaxx8"]
[Black "temus_galaktionov"]
[Result "1/2-1/2"]
[WhiteElo "2734"]
[BlackElo "2871"]
[TimeControl "180+1"]
[EndTime "15:44:45 PDT"]
[Termination "Game drawn by repetition"]

1. d4 {[%clk 0:02:56.5]} 1... c6 {[%clk 0:03:00.9]} 2. c4 {[%clk 0:02:56.2]}
2... g6 {[%clk 0:02:58.9]} 3. Nc3 {[%clk 0:02:51.3]} 3... d6 {[%clk 0:02:59.8]}
4. Nf3 {[%clk 0:02:51.4]} 4... Bg7 {[%clk 0:02:57.1]} 5. Bf4 {[%clk 0:02:51]}
5... Nd7 {[%clk 0:02:56.8]} 6. e3 {[%clk 0:02:49.4]} 6... e5 {[%clk 0:02:56.7]}
7. dxe5 {[%clk 0:02:48.6]} 7... dxe5 {[%clk 0:02:57.6]} 8. Bg3 {[%clk
0:02:49.3]} 8... Qe7 {[%clk 0:02:58.2]} 9. Be2 {[%clk 0:02:49.1]} 9... Ngf6
{[%clk 0:02:58.1]} 10. O-O {[%clk 0:02:48]} 10... O-O {[%clk 0:02:57.4]} 11. Qc2
{[%clk 0:02:48.1]} 11... Nh5 {[%clk 0:02:52.6]} 12. Rad1 {[%clk 0:02:47.1]}
12... Nxg3 {[%clk 0:02:51.4]} 13. hxg3 {[%clk 0:02:48]} 13... a5 {[%clk
0:02:49.5]} 14. Na4 {[%clk 0:02:37]} 14... Nc5 {[%clk 0:02:48.9]} 15. Nxc5
{[%clk 0:02:30.2]} 15... Qxc5 {[%clk 0:02:49.8]} 16. Nd2 {[%clk 0:02:30.3]}
16... Bf5 {[%clk 0:02:28.7]} 17. Bd3 {[%clk 0:02:29.4]} 17... Bg4 {[%clk
0:02:23.9]} 18. Ne4 {[%clk 0:02:23.2]} 18... Qe7 {[%clk 0:02:19.9]} 19. Rd2
{[%clk 0:02:11.5]} 19... f5 {[%clk 0:02:07.1]} 20. Nc3 {[%clk 0:02:10.8]} 20...
e4 {[%clk 0:02:07.2]} 21. Be2 {[%clk 0:02:10.8]} 21... Bxe2 {[%clk 0:02:07.4]}
22. Nxe2 {[%clk 0:02:11.4]} 22... Rfd8 {[%clk 0:02:07]} 23. Rfd1 {[%clk
0:02:10.9]} 23... Bf6 {[%clk 0:02:01]} 24. b3 {[%clk 0:02:07.9]} 24... Rxd2
{[%clk 0:01:58.9]} 25. Rxd2 {[%clk 0:02:07.9]} 25... Rd8 {[%clk 0:01:58.7]} 26.
Nf4 {[%clk 0:02:05.6]} 26... Kf7 {[%clk 0:01:47.2]} 27. Rxd8 {[%clk 0:01:47.1]}
27... Qxd8 {[%clk 0:01:46.7]} 28. c5 {[%clk 0:01:48]} 28... Ke7 {[%clk
0:01:33.8]} 29. Qc4 {[%clk 0:01:43.2]} 29... Qc8 {[%clk 0:01:32.9]} 30. Qa4
{[%clk 0:01:26.1]} 30... g5 {[%clk 0:01:30.9]} 31. Ne2 {[%clk 0:00:59.1]} 31...
Qd8 {[%clk 0:01:29.9]} 32. Nd4 {[%clk 0:00:58]} 32... Bxd4 {[%clk 0:01:23.8]}
33. exd4 {[%clk 0:00:58.9]} 33... Ke6 {[%clk 0:01:22.4]} 34. Qc4+ {[%clk
0:00:53]} 34... Qd5 {[%clk 0:01:22.3]} 35. Qc3 {[%clk 0:00:53.2]} 35... f4
{[%clk 0:01:18.3]} 36. gxf4 {[%clk 0:00:52.3]} 36... gxf4 {[%clk 0:01:19.2]} 37.
Qh3+ {[%clk 0:00:49.8]} 37... Qf5 {[%clk 0:01:03]} 38. Qh6+ {[%clk 0:00:48.7]}
38... Qf6 {[%clk 0:01:03.2]} 39. Qh3+ {[%clk 0:00:27.1]} 39... Qf5 {[%clk
0:01:03.1]} 40. Qh6+ {[%clk 0:00:27]} 40... Qf6 {[%clk 0:00:59.5]} 41. Qh3+
{[%clk 0:00:26.8]} 41... Qf5 {[%clk 0:00:59.5]} 1/2-1/2

[Event "Late-Titled-Tuesday-Blitz-June-18-2024"]
[Site "Chess.com"]
[Date "2024.06.18"]
[Round "9"]
[White "Smiechu"]
[Black "pinelone"]
[Result "1-0"]
[WhiteElo "2338"]
[BlackElo "2437"]
[TimeControl "180+1"]
[EndTime "15:44:49 PDT"]
[Termination "Smiechu won on time"]

1. e4 {[%clk 0:03:00.9]} 1... c6 {[%clk 0:03:00.3]} 2. d4 {[%clk 0:03:00.5]}
2... d5 {[%clk 0:03:00.6]} 3. f3 {[%clk 0:03:01.1]} 3... Qb6 {[%clk 0:03:00.1]}
4. Nc3 {[%clk 0:02:59.7]} 4... dxe4 {[%clk 0:03:00.5]} 5. fxe4 {[%clk
0:02:59.1]} 5... e5 {[%clk 0:03:00.9]} 6. Nf3 {[%clk 0:02:56]} 6... exd4 {[%clk
0:03:01]} 7. Nxd4 {[%clk 0:02:47.8]} 7... Nf6 {[%clk 0:03:00.8]} 8. Bc4 {[%clk
0:02:42.5]} 8... Bc5 {[%clk 0:02:35.8]} 9. Nb3 {[%clk 0:02:40.2]} 9... Bb4
{[%clk 0:02:25.9]} 10. e5 {[%clk 0:02:35]} 10... Ng4 {[%clk 0:02:14.7]} 11. Qf3
{[%clk 0:02:34.8]} 11... Nxe5 {[%clk 0:02:09.3]} 12. Qe2 {[%clk 0:02:34.8]}
12... Nd7 {[%clk 0:01:45.6]} 13. Be3 {[%clk 0:02:34.1]} 13... Qc7 {[%clk
0:01:38]} 14. O-O-O {[%clk 0:02:31.5]} 14... Bxc3 {[%clk 0:01:34.9]} 15. bxc3
{[%clk 0:02:31]} 15... O-O {[%clk 0:01:33.3]} 16. Bf4 {[%clk 0:02:24.6]} 16...
Nd3+ {[%clk 0:01:28.8]} 17. Bxd3 {[%clk 0:02:17.8]} 17... Qxf4+ {[%clk
0:01:28.5]} 18. Kb2 {[%clk 0:02:18.3]} 18... Nb6 {[%clk 0:01:21.1]} 19. Rhf1
{[%clk 0:02:18.1]} 19... Qh6 {[%clk 0:00:57]} 20. Nd4 {[%clk 0:02:00.5]} 20...
Na4+ {[%clk 0:00:54.4]} 21. Kb3 {[%clk 0:01:57.2]} 21... Nc5+ {[%clk 0:00:51.6]}
22. Kb2 {[%clk 0:01:57.4]} 22... Be6 {[%clk 0:00:35.7]} 23. Nxe6 {[%clk
0:01:48.7]} 23... fxe6 {[%clk 0:00:32.8]} 24. Bc4 {[%clk 0:01:45]} 24... b5
{[%clk 0:00:25.8]} 25. Bb3 {[%clk 0:01:44.5]} 25... Na4+ {[%clk 0:00:12.3]} 26.
Bxa4 {[%clk 0:01:41.6]} 26... bxa4 {[%clk 0:00:12.7]} 27. Rxf8+ {[%clk
0:01:40.2]} 27... Rxf8 {[%clk 0:00:12.4]} 28. Rd6 {[%clk 0:01:40.2]} 28... Qxh2
{[%clk 0:00:11.5]} 29. Qxe6+ {[%clk 0:01:38.3]} 29... Kh8 {[%clk 0:00:11.4]} 30.
Rxc6 {[%clk 0:01:33.2]} 30... Qb8+ {[%clk 0:00:10.7]} 31. Ka3 {[%clk 0:01:30.5]}
31... Re8 {[%clk 0:00:09.5]} 32. Qd6 {[%clk 0:01:24.1]} 32... Qxd6+ {[%clk
0:00:05]} 33. Rxd6 {[%clk 0:01:24.2]} 33... h6 {[%clk 0:00:03.5]} 34. Kxa4
{[%clk 0:01:23.6]} 34... Re2 {[%clk 0:00:03.5]} 35. Kb3 {[%clk 0:01:19.9]} 35...
Rxg2 {[%clk 0:00:03]} 36. c4 {[%clk 0:01:20.5]} 36... h5 {[%clk 0:00:02.9]} 37.
c5 {[%clk 0:01:19.3]} 37... Rg1 {[%clk 0:00:01.1]} 38. c6 {[%clk 0:01:13.5]} 1-0

[Event "Late-Titled-Tuesday-Blitz-June-18-2024"]
[Site "Chess.com"]
[Date "2024.06.18"]
[Round "9"]
[White "reevecanada"]
[Black "DanylaBagrov"]
[Result "0-1"]
[WhiteElo "2616"]
[BlackElo "2539"]
[TimeControl "180+1"]
[EndTime "15:44:51 PDT"]
[Termination "DanylaBagrov won on time"]

1. Nf3 {[%clk 0:02:56.1]} 1... d6 {[%clk 0:02:59.7]} 2. d4 {[%clk 0:02:54.9]}
2... Nf6 {[%clk 0:02:59.8]} 3. Nc3 {[%clk 0:02:53.7]} 3... Nbd7 {[%clk
0:03:00.1]} 4. e4 {[%clk 0:02:52.7]} 4... e5 {[%clk 0:03:00.5]} 5. Bg5 {[%clk
0:02:53.2]} 5... Be7 {[%clk 0:02:59.5]} 6. Bc4 {[%clk 0:02:50]} 6... O-O {[%clk
0:02:56.6]} 7. O-O {[%clk 0:02:50.5]} 7... c6 {[%clk 0:02:50]} 8. dxe5 {[%clk
0:02:48.7]} 8... Nxe5 {[%clk 0:02:42.5]} 9. Nxe5 {[%clk 0:02:46.2]} 9... dxe5
{[%clk 0:02:43.4]} 10. Qxd8 {[%clk 0:02:46]} 10... Rxd8 {[%clk 0:02:43.6]} 11.
Rad1 {[%clk 0:02:46.2]} 11... Rxd1 {[%clk 0:02:30.9]} 12. Rxd1 {[%clk
0:02:43.6]} 12... b5 {[%clk 0:02:31.1]} 13. Bb3 {[%clk 0:02:38.9]} 13... h6
{[%clk 0:01:40.1]} 14. Bxf6 {[%clk 0:02:35.9]} 14... gxf6 {[%clk 0:01:41]} 15.
f3 {[%clk 0:02:28.2]} 15... Kf8 {[%clk 0:01:27.8]} 16. g4 {[%clk 0:02:24.3]}
16... Ke8 {[%clk 0:01:24.1]} 17. Ne2 {[%clk 0:02:21.5]} 17... Be6 {[%clk
0:01:23.4]} 18. Ng3 {[%clk 0:02:19]} 18... a5 {[%clk 0:01:18.1]} 19. Bxe6 {[%clk
0:02:12.6]} 19... fxe6 {[%clk 0:01:17.9]} 20. Kg2 {[%clk 0:02:13.2]} 20... a4
{[%clk 0:01:15]} 21. Kh3 {[%clk 0:02:10.3]} 21... a3 {[%clk 0:01:12.2]} 22. b3
{[%clk 0:02:09.6]} 22... c5 {[%clk 0:01:00]} 23. Kh4 {[%clk 0:02:06.2]} 23... c4
{[%clk 0:00:50.3]} 24. Kh5 {[%clk 0:02:03.9]} 24... cxb3 {[%clk 0:00:48.8]} 25.
cxb3 {[%clk 0:02:00.9]} 25... Rc8 {[%clk 0:00:42.3]} 0-1